bitfinex/quotes_ETHUSD_20250220
["timestamp","ask_amount","ask_price","bid_price","bid_amount"]
[1740051366924,3.68402633,2741.9,2741.6,0.259]
[1740051367092,3.68402633,2741.9,2741.7,0.11796311]
[1740051367702,8.88697,2742.0,2741.7,0.11796311]
[1740051367901,5.24,2742.0,2741.8,0.8142]
[1740051368101,8.88698,2742.0,2741.8,0.8142]
[1740051368293,8.88698,2742.0,2741.9,0.11796311]
[1740051368695,8.88698,2742.0,2741.6,1.0346]
[1740051368895,8.88698,2742.0,2741.7,0.11796311]
[1740051370505,3.64712,2741.9,2741.7,0.11796311]
[1740051370828,3.64723,2741.8,2741.7,0.11796311]
[1740051371129,3.64723,2741.8,2741.7,0.37696311]
[1740051371293,5.01290133,2741.8,2741.7,0.11796311]
[1740051371497,4.19737,2741.7,2741.6,0.259]
[1740051371721,3.64763,2741.5,2741.4,0.259]
[1740051371925,3.68454633,2741.5,2741.4,0.259]
[1740051372118,3.64763,2741.5,2741.4,0.259]
[1740051372655,3.64763,2741.5,2741.4,0.37741447]
[1740051372868,5.24,2741.8,2741.4,0.37741447]
[1740051373068,3.0,2741.7,2741.4,0.37741447]
[1740051373356,0.03691633,2741.6,2741.5,0.11841447]
[1740051373569,3.68441633,2741.6,2741.5,0.11841447]
[1740051373851,0.03691633,2741.6,2741.5,0.11841447]
[1740051374180,6.64738,2741.7,2741.5,0.11841447]
[1740051375327,0.03691633,2741.6,2741.5,0.11841447]
[1740051375539,5.24,2741.7,2741.5,0.11841447]
[1740051375874,5.24,2741.7,2741.4,0.259]
[1740051376393,5.24,2741.7,2741.5,0.11857012]
[1740051376699,8.88739,2741.7,2741.5,0.11857012]
[1740051377146,5.24,2741.7,2741.6,3.6475]
[1740051377468,5.24,2741.7,2741.6,5.3346553]
[1740051378147,8.88671,2742.2,2741.6,1.6871553]
[1740051378357,8.88671,2742.2,2741.7,3.6473]
[1740051378870,5.24,2742.2,2741.8,3.76572229]
[1740051379315,5.24,2742.2,2741.8,0.11849229]
[1740051379593,5.24,2742.2,2741.7,4.5336523]
[1740051379894,5.27691633,2742.2,2741.9,0.11849229]
[1740051380105,8.88671,2742.2,2741.7,3.64736]
[1740051380283,8.88671,2742.2,2742.0,0.11849229]
[1740051380499,8.88671,2742.2,2741.7,4.092146]
[1740051380668,8.88671,2742.2,2742.1,0.11849229]
[1740051380868,8.88671,2742.2,2741.7,7.29456]
[1740051381085,8.88671,2742.2,2742.1,0.11849229]
[1740051381278,8.88671,2742.2,2741.7,3.64727]
[1740051381504,8.88671,2742.2,2742.1,0.11849229]
[1740051381688,8.88671,2742.2,2741.7,3.64727]
[1740051381878,8.88671,2742.2,2742.1,0.11849229]
[1740051382197,8.88678,2742.2,2742.1,0.11849229]
[1740051382404,8.88678,2742.2,2741.6,0.8014]
[1740051382405,3.64693,2742.1,2741.6,0.8014]
[1740051383195,3.64693,2742.1,2741.6,4.44888]
[1740051383397,0.7716,2741.9,2741.4,1.48880964]
[1740051383597,0.7716,2741.9,2741.5,0.259]
[1740051383779,3.6474,2741.7,2741.5,0.259]
[1740051384490,3.6474,2741.7,2741.2,3.64803]
[1740051384491,3.64737,2741.7,2741.6,0.26]
[1740051384897,3.64737,2741.7,2741.6,0.37818099]
[1740051385210,11.35108263,2741.7,2741.6,0.37818099]
[1740051385705,11.35108263,2741.7,2741.6,0.26]
[1740051387611,14.35108263,2741.7,2741.6,0.26]
[1740051388415,3.64797,2741.3,2741.0,0.7938]
[1740051388616,8.92450633,2741.6,2741.1,0.26]
[1740051388948,3.64776,2741.5,2741.1,0.37633061]
[1740051390918,3.64777,2741.4,2741.1,0.37633061]
[1740051392013,5.24,2741.6,2741.1,0.96600517]
[1740051392218,5.24,2741.6,2741.4,3.64768]
[1740051392637,5.24,2741.6,2741.2,4.42223]
[1740051392836,5.24,2741.6,2741.5,0.11633061]
[1740051393011,5.24,2741.6,2741.2,4.42223]
[1740051393216,8.88737,2741.7,2741.5,0.11633061]
[1740051393423,8.88737,2741.7,2741.2,5.3142412]
[1740051393662,5.24,2741.7,2741.6,0.11633061]
[1740051393951,5.24,2741.9,2741.7,3.64729]
[1740051394149,5.24,2741.9,2741.6,0.90923061]
[1740051394319,5.24,2741.9,2741.6,0.7929]
[1740051394519,12.53428,2741.9,2741.7,0.116424]
[1740051394724,3.68414633,2741.8,2741.7,0.116424]
[1740051396115,3.64723,2741.8,2741.7,0.116424]
[1740051396320,3.68414633,2741.8,2741.7,0.116424]
[1740051396757,3.64723,2741.8,2741.7,0.116424]
[1740051397868,5.24,2741.9,2741.7,0.116424]
[1740051398078,8.88714,2741.9,2741.7,0.116424]
[1740051399931,8.88714,2741.9,2741.4,5.1497805]
[1740051400132,0.03691633,2741.8,2741.5,0.116424]
[1740051400767,8.88714,2741.9,2741.5,0.116424]
[1740051404265,8.88714,2741.9,2741.5,3.764054]
[1740051404437,8.88714,2741.9,2741.5,0.116424]
[1740051406361,8.88714,2741.9,2741.5,3.764044]
[1740051408185,4.44328633,2741.8,2741.6,0.259]
[1740051408885,4.44328633,2741.8,2741.7,0.116424]
[1740051410285,4.44328633,2741.8,2741.7,0.375424]
[1740051411668,4.99328633,2741.8,2741.7,0.116424]
[1740051411984,3.64795,2741.3,2741.0,0.72661807]
[1740051412189,0.03691633,2741.2,2741.1,0.37538507]
[1740051412399,3.64803,2741.2,2741.1,0.37538507]
[1740051413092,5.24,2741.3,2741.1,0.37538507]
[1740051414488,8.88797,2741.3,2741.1,0.37538507]
[1740051415161,0.03691633,2741.2,2741.1,0.37538507]
[1740051416195,9.65587,2741.3,2741.1,0.37538507]
[1740051416576,0.03691633,2741.2,2741.1,0.37538507]
[1740051417304,3.68494633,2741.2,2741.1,0.37538507]
[1740051417596,0.03691633,2741.2,2741.1,0.37538507]
[1740051418294,3.68494633,2741.2,2741.1,0.37538507]
[1740051418700,0.03691633,2741.2,2741.1,0.37538507]
[1740051419875,3.68494633,2741.2,2741.1,0.37538507]
[1740051420081,0.03691633,2741.2,2741.1,0.37538507]
[1740051420281,3.68494633,2741.2,2741.1,0.37538507]
[1740051420599,0.03691633,2741.2,2741.1,0.37538507]
[1740051421199,9.65587,2741.3,2741.1,0.37538507]
[1740051421576,13.30388,2741.3,2741.1,0.37538507]
[1740051421796,3.68494633,2741.2,2741.1,0.37538507]
[1740051422097,0.03691633,2741.2,2741.1,0.37538507]
[1740051423104,3.68494633,2741.2,2741.1,0.37538507]
[1740051423305,3.64803,2741.2,2741.1,0.37538507]
[1740051423599,3.64803,2741.2,2741.1,0.11638507]
[1740051423799,5.56533633,2741.2,2741.1,0.37538507]
[1740051424008,5.56533633,2741.2,2741.1,0.259]
[1740051424162,5.52842,2741.2,2741.1,0.259]
[1740051424368,5.52842,2741.2,2741.1,0.37594549]
[1740051425505,5.52842,2741.2,2741.1,0.11694549]
[1740051425506,5.56533633,2741.2,2741.1,0.11694549]
[1740051425703,6.33793633,2741.2,2741.1,0.11694549]
[1740051425872,4.45886,2740.8,2740.7,0.1509]
[1740051426071,4.45886,2740.8,2740.7,0.4099]
[1740051429805,4.45886,2740.8,2740.7,0.52689998]
[1740051430002,3.64845,2740.9,2740.7,0.52689998]
[1740051430184,3.64856,2740.8,2740.7,0.52689998]
[1740051431706,8.88856,2740.8,2740.7,0.52689998]
[1740051431904,5.24,2740.8,2740.7,0.52689998]
[1740051432705,5.24,2740.8,2740.7,1.35209998]
[1740051433106,5.24,2740.8,2740.7,5.86578898]
[1740051437814,8.88793,2741.3,2740.7,5.86578898]
[1740051437993,12.53595,2741.3,2740.7,5.00079998]
[1740051438185,3.68497633,2741.2,2740.7,5.00079998]
[1740051438378,0.03691633,2741.2,2740.7,5.00079998]
[1740051438583,3.68496633,2741.2,2740.7,5.00079998]
[1740051439114,4.4676,2741.0,2740.8,0.259]
[1740051439336,4.50451633,2741.0,2740.9,0.259]
[1740051439517,4.50451633,2741.0,2740.9,0.37693429]
[1740051439718,5.31978096,2741.0,2740.9,0.37693429]
[1740051440912,5.28286463,2741.0,2740.9,0.37693429]
[1740051441879,5.31978096,2741.0,2740.9,0.37693429]
[1740051442080,5.28286463,2741.0,2740.9,0.37693429]
[1740051442509,5.83286463,2741.0,2740.9,0.11793429]
[1740051442683,8.86978096,2741.0,2740.9,0.11793429]
[1740051442878,4.19843,2740.9,2740.8,0.259]
[1740051443102,5.81137646,2740.9,2740.8,0.259]
[1740051443708,11.05137646,2740.9,2740.8,0.259]
[1740051446527,11.05137646,2740.9,2740.8,0.37682528]
[1740051447812,11.05137646,2740.9,2740.8,0.259]
[1740051448699,11.05137646,2740.9,2740.8,0.37682528]
[1740051448932,11.05137646,2740.9,2740.8,0.259]
[1740051458340,9.43843,2740.9,2740.8,0.259]
[1740051460045,9.43843,2740.9,2740.8,0.37674741]
[1740051460337,5.24,2740.9,2740.8,1.18024741]
[1740051461510,3.0,2741.1,2740.8,1.18024741]
[1740051462122,6.64817,2741.1,2740.8,1.18024741]
[1740051462323,6.68508633,2741.1,2740.8,1.18024741]
[1740051462614,3.64833,2741.0,2740.8,1.18024741]
[1740051466816,7.29674,2741.0,2740.8,1.18024741]
[1740051467018,3.64833,2741.0,2740.8,1.18024741]
[1740051467217,3.03691633,2741.1,2740.8,1.18024741]
[1740051467550,3.64831,2741.0,2740.8,1.18024741]
[1740051468219,3.64831,2741.0,2740.8,1.0625]
[1740051468413,3.64831,2741.0,2740.9,0.11756051]
[1740051469552,3.64831,2741.0,2740.9,0.01836051]
[1740051469721,5.20564663,2741.0,2740.9,0.11401766]
[1740051470752,5.20564663,2741.0,2740.8,1.0625]
[1740051471047,5.20564663,2741.0,2740.9,0.11401766]
[1740051472053,6.01184663,2741.0,2740.9,0.11401766]
[1740051472221,5.20564663,2741.0,2740.9,0.11401766]
[1740051474256,3.64831,2741.0,2740.9,0.11401766]
[1740051481373,3.0,2741.1,2740.9,0.11401766]
[1740051481573,5.24,2741.2,2741.0,3.6483]
[1740051481794,5.24,2741.2,2741.1,4.41577]
[1740051482079,5.24,2741.2,2741.1,0.88156316]
[1740051483074,8.88803,2741.2,2741.1,0.88156316]
[1740051483864,8.88803,2741.2,2741.1,0.11396316]
[1740051484065,10.141634,2741.2,2741.1,0.11396316]
[1740051484393,10.141634,2741.2,2740.9,0.8074]
[1740051484578,8.88803,2741.2,2741.1,0.11396316]
[1740051484759,3.6483,2741.0,2740.9,0.8074]
[1740051485078,3.6483,2741.0,2740.9,0.258]
[1740051485481,3.68521633,2741.0,2740.9,0.258]
[1740051486348,4.40488,2741.1,2740.9,0.258]
[1740051486573,3.6483,2741.0,2740.9,0.258]
[1740051487578,5.369368,2741.1,2740.7,0.1509]
[1740051487786,3.64844,2740.9,2740.8,0.258]
[1740051488350,3.64856,2740.8,2740.7,0.1509]
[1740051488583,4.51487633,2740.8,2740.7,0.4089]
[1740051488885,5.49759778,2740.8,2740.7,0.4089]
[1740051489350,5.46068145,2740.8,2740.7,0.4089]
[1740051489786,5.46068145,2740.8,2740.7,0.52264515]
[1740051490859,5.49759778,2740.8,2740.7,0.52264515]
[1740051491276,10.73759778,2740.8,2740.7,0.52264515]
[1740051491452,10.70068145,2740.8,2740.7,0.52264515]
[1740051491655,10.70068145,2740.8,2740.7,0.26464515]
[1740051491855,11.25068145,2740.8,2740.7,0.52264515]
[1740051492055,11.25068145,2740.8,2740.7,0.4089]
[1740051492762,14.24278145,2740.8,2740.7,0.1509]
[1740051497850,7.04422145,2740.8,2740.7,0.1509]
[1740051498085,5.24,2740.8,2740.7,3.91416147]
[1740051498452,5.24,2740.8,2740.7,0.26546147]
[1740051498785,8.88856,2740.8,2740.7,0.26546147]
[1740051499094,9.66346,2740.8,2740.7,0.52346147]
[1740051499793,8.88856,2740.8,2740.7,0.52346147]
[1740051501584,10.217473,2740.8,2740.7,0.52346147]
[1740051502104,10.217473,2740.8,2740.7,0.4089]
[1740051502905,10.217473,2740.8,2740.7,0.1509]
[1740051503072,10.217473,2740.8,2740.7,0.4099]
[1740051503392,8.88856,2740.8,2740.7,0.4099]
[1740051503759,8.88856,2740.8,2740.7,0.52013802]
[1740051505166,8.88856,2740.8,2740.7,0.4099]
[1740051505665,8.88856,2740.8,2740.7,0.52013802]
[1740051505870,8.88856,2740.8,2740.7,0.4099]
[1740051506388,8.88856,2740.8,2740.7,0.52013802]
[1740051508592,5.24,2740.8,2740.7,1.31523802]
[1740051508793,5.24,2740.8,2740.7,4.96393802]
[1740051509000,8.88812,2741.2,2740.7,5.82521882]
[1740051509892,5.24,2741.2,2740.7,2.17651882]
[1740051510096,5.24,2741.2,2740.7,1.31523802]
[1740051510267,3.64817,2741.1,2740.7,1.31523802]
[1740051510594,8.88806,2741.2,2740.7,4.96392802]
[1740051510799,5.24,2741.2,2740.8,3.64847]
[1740051510973,5.24,2741.2,2740.8,4.1448408]
[1740051511173,5.24,2741.2,2740.9,0.10994206]
[1740051512487,5.24,2741.2,2741.0,0.8332]
[1740051512903,5.24,2741.2,2741.1,0.10974741]
[1740051514488,8.88803,2741.2,2741.1,0.10974741]
[1740051514866,5.24,2741.2,2741.1,0.10974741]
[1740051519504,5.27691633,2741.2,2741.1,0.10974741]
[1740051519708,8.88803,2741.2,2740.7,0.9463]
[1740051519876,3.64852,2740.9,2740.8,0.258]
[1740051520074,3.68543633,2740.9,2740.8,0.258]
[1740051520276,3.64852,2740.9,2740.8,0.258]
[1740051522306,3.64852,2740.9,2740.7,0.88975489]
[1740051522510,3.64852,2740.9,2740.8,0.258]
[1740051523689,7.33370633,2741.0,2740.8,0.258]
[1740051523890,7.29679,2741.0,2740.8,0.258]
[1740051524317,3.64837,2741.0,2740.8,0.258]
[1740051524505,3.64818,2741.1,2740.8,0.258]
[1740051524885,3.6483,2741.0,2740.8,0.258]
[1740051525083,3.6483,2741.0,2740.9,0.7679]
[1740051527112,5.24,2741.2,2740.9,0.7679]
[1740051527414,5.24,2741.2,2740.9,0.95946549]
[1740051528275,8.88783,2741.4,2740.9,0.95946549]
[1740051528510,12.5357,2741.4,2740.9,0.95946549]
[1740051528923,3.64791,2741.3,2740.9,0.95946549]
[1740051529612,8.88783,2741.4,2741.0,0.48659055]
[1740051529816,5.24,2741.4,2741.0,4.13482055]
[1740051530017,8.88783,2741.4,2741.0,0.48659055]
[1740051530221,5.24,2741.4,2741.0,0.48659055]
[1740051530383,5.24,2741.4,2741.0,4.13484055]
[1740051530909,5.24,2741.4,2741.1,0.63443569]
[1740051531117,8.88777,2741.4,2741.1,0.63443569]
[1740051531284,8.88777,2741.4,2741.0,0.48659055]
[1740051534720,8.88777,2741.4,2741.1,0.10940487]
[1740051535098,8.88777,2741.4,2740.9,4.60782549]
[1740051535513,8.88777,2741.4,2741.0,0.10940487]
[1740051536685,12.53564,2741.4,2741.0,0.10940487]
[1740051537520,8.88777,2741.4,2741.0,0.10940487]
[1740051537824,3.64796,2741.3,2741.0,0.10940487]
[1740051541741,7.29597,2741.3,2741.0,0.10940487]
[1740051541962,3.64796,2741.3,2741.0,0.10940487]
[1740051543526,7.29596,2741.3,2741.0,0.10940487]
[1740051543692,3.64796,2741.3,2741.0,0.10940487]
[1740051545729,3.64796,2741.3,2741.1,0.258]
[1740051545895,3.64796,2741.3,2741.1,0.36641001]
[1740051546324,3.64796,2741.3,2741.1,0.10841001]
[1740051546524,3.64803,2741.2,2741.1,0.10841001]
[1740051546706,3.64803,2741.2,2741.1,0.258]
[1740051548434,3.64817,2741.1,2740.7,0.88975489]
[1740051548599,3.64853,2740.9,2740.8,0.258]
[1740051549046,3.64856,2740.8,2740.7,0.1509]
[1740051549206,4.40966,2740.8,2740.7,0.1509]
[1740051549523,5.739479,2740.8,2740.7,0.4089]
[1740051550298,5.739479,2740.8,2740.7,0.5021729]
[1740051551029,5.739479,2740.8,2740.7,0.2441729]
[1740051551220,6.34749533,2740.8,2740.7,0.2441729]
[1740051551421,11.58749533,2740.8,2740.7,0.2441729]
[1740051551614,14.550579,2740.8,2740.7,0.2441729]
[1740051551930,14.550579,2740.8,2740.7,0.1509]
[1740051554223,14.000579,2740.8,2740.7,0.1509]
[1740051564388,14.550579,2740.8,2740.7,0.1509]
[1740051574816,14.550579,2740.8,2740.7,0.24157198]
[1740051576202,11.88856,2740.8,2740.7,0.1509]
[1740051576401,11.88856,2740.8,2740.7,0.24157198]
[1740051582625,14.10252696,2740.8,2740.7,0.24157198]
[1740051582800,14.91742696,2740.8,2740.7,0.1509]
[1740051593803,13.25346,2740.8,2740.7,0.1509]
[1740051594005,12.43856,2740.8,2740.7,0.1509]
[1740051594331,14.2924957,2740.8,2740.7,0.1509]
[1740051597020,13.7424957,2740.8,2740.7,0.1509]
[1740051599958,16.77026266,2740.8,2740.7,0.1509]
[1740051603246,16.77026266,2740.8,2740.0,0.8158]
[1740051603247,0.771,2740.6,2740.0,0.8158]
[1740051603451,3.0,2740.0,2739.9,1.46832251]
[1740051603746,11.88963,2740.0,2739.9,1.72632251]
[1740051603913,13.55359696,2740.0,2739.9,1.46832251]
[1740051604108,14.10359696,2740.0,2739.9,1.46832251]
[1740051604336,14.99239996,2740.0,2739.9,1.46832251]
[1740051605478,15.77759996,2740.0,2739.9,1.46832251]
[1740051606584,15.77759996,2740.0,2739.3,0.7768]
[1740051606585,3.0,2739.8,2739.3,0.7768]
[1740051606790,3.65043,2739.4,2739.3,0.7768]
[1740051606951,5.24,2739.4,2739.3,1.0348]
[1740051607153,3.95734497,2739.4,2739.3,7.34101025]
[1740051607338,3.42016629,2739.4,2739.3,7.34101025]
[1740051607681,2.60520478,2739.4,2739.3,7.34101025]
[1740051608094,2.60520478,2739.4,2739.3,5.67704329]
[1740051608666,2.60520478,2739.4,2739.3,9.11016569]
[1740051610091,2.60520478,2739.4,2739.3,9.20178024]
[1740051611575,2.60520478,2739.4,2739.3,8.94378024]
[1740051611777,2.60520478,2739.4,2739.3,9.20178024]
[1740051612983,2.60520478,2739.4,2739.3,5.55122024]
[1740051613190,2.60520478,2739.4,2739.3,2.11809784]
[1740051614040,2.60520478,2739.4,2739.3,9.20178024]
[1740051620156,1.8611711,2739.4,2739.3,9.20178024]
[1740051620524,1.73731991,2739.4,2739.3,9.20178024]
[1740051620742,5.24,2740.5,2739.3,9.20178024]
[1740051620743,5.24,2740.5,2740.1,0.8179]
[1740051621059,3.0,2740.5,2740.2,0.34921722]
[1740051621359,4.4652,2740.6,2740.2,0.34921722]
[1740051621520,8.11411,2740.6,2740.2,0.34921722]
[1740051622557,4.4652,2740.6,2740.2,0.34921722]
[1740051622709,8.11412,2740.6,2740.2,0.34921722]
[1740051622910,4.4652,2740.6,2740.2,0.34921722]
[1740051623727,3.0,2740.6,2740.2,0.34921722]
[1740051623941,6.64887,2740.6,2740.2,0.34921722]
[1740051624309,10.29779,2740.6,2740.2,0.34921722]
[1740051624506,6.64887,2740.6,2740.2,0.34921722]
[1740051624829,6.64887,2740.6,2740.2,0.83087094]
[1740051625064,10.29779,2740.6,2740.2,0.83087094]
[1740051625259,3.64898,2740.5,2740.2,0.83087094]
[1740051626370,3.0,2740.6,2740.2,1.57350633]
[1740051626665,6.64884,2740.6,2740.2,1.57350633]
[1740051627019,3.0,2740.6,2740.4,0.7719]
[1740051627378,3.0,2740.6,2740.5,0.09067079]
[1740051627534,5.24,2741.0,2740.6,3.64883]
[1740051627977,5.24,2741.0,2740.7,0.09001651]
[1740051628150,3.0,2741.1,2740.7,0.09001651]
[1740051628319,3.64845,2740.9,2740.7,0.09001651]
[1740051628668,3.64845,2740.9,2740.4,7.8541124]
[1740051628851,3.64845,2740.9,2740.5,0.09001651]
[1740051632074,3.64845,2740.9,2740.5,0.13040618]
[1740051633023,4.43965,2740.9,2740.5,0.13040618]
[1740051634167,3.64859,2740.8,2740.5,0.13040618]
[1740051634361,4.43965,2740.9,2740.5,0.13040618]
[1740051634725,3.64857,2740.8,2740.5,0.13040618]
[1740051637051,0.03691633,2740.7,2740.2,1.57053539]
[1740051637246,3.64881,2740.7,2740.6,0.258]
[1740051637450,4.38224063,2740.7,2740.6,0.258]
[1740051637652,4.41915696,2740.7,2740.6,0.38821151]
[1740051637953,5.24435696,2740.7,2740.6,0.38821151]
[1740051638163,8.24435696,2740.7,2740.6,0.13021151]
[1740051638460,8.75744063,2740.7,2740.6,0.258]
[1740051639860,13.99744063,2740.7,2740.6,0.258]
[1740051647849,12.71401,2740.7,2740.6,0.258]
[1740051648056,11.8887,2740.7,2740.6,0.258]
[1740051648265,11.8887,2740.7,2740.6,0.38852302]
[1740051650275,11.8887,2740.7,2740.6,0.258]
[1740051650677,5.24,2740.7,2740.6,0.258]
[1740051650880,5.24,2740.7,2740.6,3.90683]
[1740051651179,5.24,2740.7,2740.6,0.86079602]
[1740051651654,3.64839,2741.0,2740.6,0.86079602]
[1740051651850,8.09613,2741.1,2740.6,0.86079602]
[1740051652055,4.44787,2741.1,2740.6,0.86079602]
[1740051652276,4.44787,2741.1,2740.6,4.50961602]
[1740051652581,3.64838,2741.0,2740.6,0.86079602]
[1740051652766,0.7997,2741.1,2740.6,0.86079602]
[1740051652960,4.44794,2741.1,2740.6,4.50959602]
[1740051653166,3.6483,2741.0,2740.6,4.50959602]
[1740051653347,3.6483,2741.0,2740.6,0.86079602]
[1740051653780,3.6483,2741.0,2740.6,0.38852302]
[1740051655480,3.68521633,2741.0,2740.6,0.38852302]
[1740051655975,0.7997,2741.1,2740.6,4.03734302]
[1740051656183,3.64831,2741.0,2740.6,4.03734302]
[1740051656380,3.64831,2741.0,2740.6,0.38852302]
[1740051656546,3.64831,2741.0,2740.6,0.87386632]
[1740051656747,3.64845,2740.9,2740.6,0.87386632]
[1740051659780,4.44798,2741.1,2740.6,0.87386632]
[1740051659951,7.44798,2741.1,2740.6,0.87386632]
[1740051660373,6.64828,2741.1,2740.6,0.87386632]
[1740051660580,3.64838,2741.0,2740.6,0.87386632]
[1740051661094,3.68540633,2740.9,2740.6,1.60046945]
[1740051661460,3.68540633,2740.9,2740.6,1.11512615]
[1740051661782,3.64849,2740.9,2740.6,1.11512615]
[1740051670574,6.64826,2741.1,2740.6,1.11512615]
[1740051670780,3.6484,2741.0,2740.6,1.11512615]
[1740051673491,6.64826,2741.1,2740.6,1.11512615]
[1740051673695,10.29653,2741.1,2740.6,1.11512615]
[1740051674499,5.24,2741.2,2741.1,4.44417]
[1740051674686,3.64736,2741.8,2741.1,0.796]
[1740051674687,0.7623,2741.8,2741.1,0.796]
[1740051675002,5.24,2741.8,2741.3,0.8333]
[1740051675192,5.24,2741.8,2741.4,3.90577]
[1740051675395,5.24,2741.8,2741.4,0.258]
[1740051675595,5.24,2741.8,2741.6,1.66352107]
[1740051675766,3.6467,2742.2,2741.6,5.31092107]
[1740051676097,3.6467,2742.2,2741.7,0.91447012]
[1740051676798,3.68376633,2742.1,2741.7,0.91447012]
[1740051676994,3.64723,2741.8,2741.7,0.12997012]
[1740051677387,3.64723,2741.8,2741.4,1.0425]
[1740051677573,3.64723,2741.8,2741.7,0.12997012]
[1740051677779,3.64723,2741.8,2741.4,1.76171159]
[1740051678002,3.64723,2741.8,2741.7,0.12997012]
[1740051678499,3.64723,2741.8,2741.4,1.0425]
[1740051678700,3.68414633,2741.8,2741.5,0.12997012]
[1740051679680,3.64723,2741.8,2741.5,0.12997012]
[1740051680002,3.64722,2741.9,2741.5,0.12997012]
[1740051680201,3.64686,2742.1,2741.6,0.8179]
[1740051680598,7.29381,2742.1,2741.6,0.8179]
[1740051680900,0.7923,2742.2,2741.6,0.8179]
[1740051680901,0.7923,2742.2,2741.7,0.12997012]
[1740051681069,7.43907,2742.2,2741.7,0.12997012]
[1740051681272,3.64677,2742.2,2741.7,3.77732012]
[1740051682098,3.6469,2742.1,2741.7,0.12997012]
[1740051682408,3.68381633,2742.1,2741.7,0.12997012]
[1740051682591,3.68381633,2742.1,2741.7,0.31591847]
[1740051683714,3.6469,2742.1,2741.7,0.31591847]
[1740051686107,0.03691633,2742.2,2741.7,0.31591847]
[1740051686410,3.64673,2742.2,2741.7,3.96319847]
[1740051686899,3.64686,2742.1,2741.7,0.31591847]
[1740051687276,3.64686,2742.1,2741.8,0.47812985]
[1740051687510,3.64686,2742.1,2741.9,0.12860023]
[1740051689511,7.29377,2742.1,2741.9,0.12860023]
[1740051689814,6.64663,2742.3,2742.0,0.7916]
[1740051690308,3.64671,2742.2,2742.1,0.12860023]
[1740051691187,10.29332,2742.3,2742.1,0.12860023]
[1740051691391,6.64663,2742.3,2742.2,0.258]
[1740051691890,6.64663,2742.3,2742.2,0.38660023]
[1740051692212,6.68354633,2742.3,2742.2,0.38660023]
[1740051692929,6.64663,2742.3,2742.2,0.38660023]
[1740051693130,6.68354633,2742.3,2742.2,0.38660023]
[1740051693476,3.0,2742.3,2742.2,0.38660023]
[1740051693676,6.64657,2742.3,2742.2,0.38660023]
[1740051694112,3.64657,2742.3,2742.2,0.38660023]
[1740051694293,12.53299,2742.4,2742.2,0.38660023]
[1740051694501,8.88644,2742.4,2742.2,0.38660023]
[1740051694809,12.533,2742.4,2742.2,0.38660023]
[1740051695309,8.88644,2742.4,2742.2,0.38660023]
[1740051695513,3.64657,2742.3,2742.2,0.38660023]
[1740051701029,3.68348633,2742.3,2742.2,0.38660023]
[1740051701692,3.68348633,2742.3,2742.2,0.12860023]
[1740051701894,2.04520896,2742.3,2741.6,0.8003]
[1740051702098,3.64699,2742.0,2741.7,0.258]
[1740051702301,7.29404,2742.0,2741.7,0.258]
[1740051702501,3.64699,2742.0,2741.7,0.258]
[1740051704091,7.29405,2742.0,2741.7,0.97186578]
[1740051705225,3.64677,2742.2,2741.7,0.97186578]
[1740051705427,3.64691,2742.1,2741.7,1.51383136]
[1740051706912,3.64691,2742.1,2741.7,1.25583136]
[1740051707113,3.64691,2742.1,2741.8,0.258]
[1740051707314,3.64677,2742.2,2741.8,0.258]
[1740051707517,3.64697,2742.1,2741.8,0.258]
[1740051709147,3.64684,2742.1,2741.8,0.258]
[1740051710945,3.64696,2742.1,2741.8,0.258]
[1740051711127,3.64696,2742.1,2741.8,0.48941314]
[1740051711851,5.24,2742.4,2742.2,0.8183]
[1740051712021,8.8865,2742.4,2742.2,0.8183]
[1740051712423,12.53302,2742.4,2742.2,0.8183]
[1740051712644,8.8865,2742.4,2742.2,0.8183]
[1740051715440,3.64604,2742.7,2742.6,0.258]
[1740051716870,8.88604,2742.7,2742.6,0.258]
[1740051720934,8.88604,2742.7,2742.6,0.38610229]
[1740051721270,8.88604,2742.7,2742.6,1.19180229]
[1740051722884,3.0,2743.1,2742.6,1.19180229]
[1740051722885,3.64584,2742.9,2742.6,1.19180229]
[1740051723084,11.88555,2743.1,2742.6,5.32178652]
[1740051723767,8.24,2743.1,2742.6,5.32178652]
[1740051723965,3.0,2742.9,2742.6,5.32178652]
[1740051724461,3.64579,2742.9,2742.6,1.67561652]
[1740051724660,5.24,2743.8,2743.6,3.6448]
[1740051724847,0.7891,2744.1,2743.7,0.258]
[1740051724848,4.43337,2744.1,2743.7,0.258]
[1740051725051,0.03691633,2744.0,2743.7,0.38527006]
[1740051725386,4.43337,2744.1,2743.7,0.38527006]
[1740051725554,8.88397,2744.3,2743.7,0.38527006]
[1740051725755,3.64397,2744.3,2743.8,0.8162]
[1740051725937,3.0,2744.1,2743.8,0.8162]
[1740051726142,5.24,2744.6,2743.9,0.12727006]
[1740051726463,3.64422,2744.1,2744.0,0.259]
[1740051726775,3.64411,2744.2,2744.0,0.259]
[1740051726942,3.64411,2744.2,2744.0,0.38553937]
[1740051728087,3.64411,2744.2,2744.0,0.12653937]
[1740051728246,3.68102633,2744.2,2744.1,0.258]
[1740051728740,3.68102633,2744.2,2744.1,0.38453937]
[1740051730376,3.68102633,2744.2,2744.1,0.12653937]
[1740051730578,3.68102633,2744.2,2744.1,0.258]
[1740051730875,3.64471,2743.7,2743.5,0.8243]
[1740051731080,3.64471,2743.7,2743.6,0.258]
[1740051731277,3.64471,2743.7,2743.6,0.38444613]
[1740051735987,3.64455,2743.9,2743.6,0.38444613]
[1740051736148,3.6444,2744.0,2743.6,0.38444613]
[1740051736348,3.64444,2743.9,2743.6,0.38444613]
[1740051736554,3.64444,2743.9,2743.6,0.79104452]
[1740051737972,3.64444,2743.9,2743.6,0.38444613]
[1740051738497,3.64458,2743.8,2743.6,0.38444613]
[1740051740494,3.6444,2744.0,2743.6,0.38444613]
[1740051740809,3.6444,2744.0,2743.7,0.7793]
[1740051741302,3.64439,2744.0,2743.8,0.12566101]